bitfinex/quotes_ETHUSD_20250625
["timestamp","ask_amount","ask_price","bid_price","bid_amount"]
[1750865896237,0.16,2410.7,2410.6,4.14834481]
[1750865896639,0.16,2410.7,2410.3,4.14870693]
[1750865896940,0.3672,2410.7,2410.4,4.14858882]
[1750865897147,0.3672,2410.7,2410.6,4.14834481]
[1750865897342,0.3672,2410.7,2410.2,0.9837]
[1750865897643,0.3672,2410.7,2410.4,4.14856484]
[1750865897846,0.3672,2410.7,2410.6,4.14834481]
[1750865898049,0.3672,2410.7,2410.2,0.9837]
[1750865898050,0.3672,2410.7,2410.5,4.1484552]
[1750865898423,0.3672,2410.7,2410.6,4.14834481]
[1750865898761,0.16,2410.7,2410.6,4.14834481]
[1750865899413,0.16,2410.9,2410.6,4.14834481]
[1750865899619,0.16,2410.9,2410.6,4.14831122]
[1750865899814,0.2072,2410.7,2410.6,4.14831122]
[1750865901124,0.3672,2410.9,2410.7,4.1480599]
[1750865901442,0.3672,2410.9,2410.8,4.14800066]
[1750865902226,0.16,2410.9,2410.8,4.14800066]
[1750865903646,0.16,2411.1,2411.0,4.14765657]
[1750865904432,0.16,2411.1,2410.8,4.97272046]
[1750865904653,0.16,2411.1,2410.7,4.1481034]
[1750865904837,0.16,2411.1,2410.8,4.14788208]
[1750865905035,0.16,2411.1,2410.7,4.14807677]
[1750865905221,0.59073145,2411.1,2410.7,4.14807677]
[1750865905420,0.59073145,2411.1,2410.8,4.14799844]
[1750865905616,0.16,2411.1,2410.8,4.14799844]
[1750865906049,0.16,2411.1,2410.5,4.14850296]
[1750865906350,0.16,2411.1,2410.9,4.14781511]
[1750865906860,0.16,2411.1,2410.7,4.14810743]
[1750865906861,0.16,2411.1,2411.0,4.14765657]
[1750865907222,0.16,2411.1,2410.9,4.14782847]
[1750865907532,0.16,2411.1,2410.8,4.14799651]
[1750865907722,0.16,2411.1,2410.9,4.14781304]
[1750865907925,0.7911,2411.0,2410.4,0.8145]
[1750865908142,1.30095679,2411.0,2410.6,4.14822198]
[1750865908450,0.16,2410.9,2410.6,4.14833963]
[1750865908659,0.16,2410.9,2410.5,4.14843097]
[1750865908823,0.16,2410.9,2410.6,4.14831496]
[1750865909022,0.16,2410.9,2410.7,4.14807016]
[1750865909341,0.16,2410.9,2410.8,4.14800066]
[1750865910664,0.16,2410.9,2410.5,4.1485169]
[1750865911121,0.16,2410.9,2410.5,4.14849919]
[1750865911451,4.30785919,2410.9,2410.4,4.14860203]
[1750865911617,1.00553815,2410.9,2410.6,4.14831613]
[1750865911825,0.16,2410.9,2410.6,4.14831613]
[1750865912243,0.16,2410.9,2410.8,4.14800066]
[1750865912448,0.3672,2410.9,2410.8,4.14800066]
[1750865912620,0.16,2410.9,2410.8,4.14800066]
[1750865913354,10.2234913,2411.4,2410.9,4.14773793]
[1750865913355,0.16,2411.2,2410.9,4.14773793]
[1750865913575,4.3072138,2411.3,2410.4,0.7897]
[1750865913725,4.3072138,2411.3,2410.4,10.7897]
[1750865913726,0.16,2411.3,2410.4,10.7897]
[1750865913928,0.16,2411.3,2410.6,4.14834481]
[1750865914127,0.16,2411.3,2411.2,4.14731254]
[1750865914369,0.2234913,2411.4,2411.1,4.14739347]
[1750865914673,0.2234913,2411.4,2410.5,7.405]
[1750865914821,0.94984839,2411.4,2410.6,10.55]
[1750865915022,0.2234913,2411.4,2411.1,4.14739576]
[1750865915242,0.2234913,2411.4,2411.0,4.14757791]
[1750865915442,0.2234913,2411.4,2411.2,4.14727979]
[1750865915740,0.2234913,2411.4,2411.2,4.14721114]
[1750865916339,0.2234913,2411.4,2411.0,4.14765657]
[1750865916542,0.2234913,2411.4,2410.9,0.8317]
[1750865916742,4.14726507,2411.3,2410.8,4.14788741]
[1750865916942,0.43707564,2411.3,2410.9,4.14778463]
[1750865917126,0.43707564,2411.3,2410.9,4.14782861]
[1750865917331,4.58429818,2411.3,2410.8,4.14791677]
[1750865917564,0.2234913,2411.4,2410.6,10.0]
[1750865917934,0.2234913,2411.4,2411.3,4.14714054]
[1750865918172,0.2234913,2411.4,2411.2,4.14726325]
[1750865918869,0.2234913,2411.4,2411.0,0.759]
[1750865919178,4.89824054,2411.3,2410.5,4.14835736]
[1750865919372,4.81956859,2411.2,2410.7,4.14816046]
[1750865919587,4.14749653,2411.1,2410.7,4.14816046]
[1750865919753,4.14749653,2411.1,2410.6,4.14825937]
[1750865920076,4.14749653,2411.1,2410.7,4.14815752]
[1750865920252,4.14749653,2411.1,2410.6,4.14828099]
[1750865920657,0.16,2411.0,2410.4,0.759]
[1750865920857,4.14790667,2410.9,2410.4,4.14864001]
[1750865921071,4.14790667,2410.9,2410.1,0.8208]
[1750865921072,4.14792424,2410.9,2410.2,14.14893468]
[1750865921235,4.14765657,2411.0,2410.3,4.14877764]
[1750865921435,4.57871786,2410.9,2410.3,4.14877764]
[1750865921662,4.14817401,2410.7,2410.2,4.14894239]
[1750865921862,4.14807068,2410.8,2410.3,4.14877827]
[1750865922035,4.14807068,2410.8,2410.4,4.14868841]
[1750865922236,4.57867478,2410.9,2410.4,4.14868841]
[1750865922440,4.14801262,2410.8,2410.3,4.14877334]
[1750865922637,4.14801262,2410.8,2410.3,4.14878076]
[1750865922638,4.14807309,2410.8,2410.3,4.14878076]
[1750865922842,4.14790789,2410.9,2410.4,4.14868184]
[1750865923568,0.2072,2410.6,2410.4,4.14868184]
[1750865924578,0.2072,2410.6,2410.5,4.1485169]
[1750865924778,0.2072,2410.6,2410.4,4.14851873]
[1750865924990,0.2072,2410.6,2410.5,4.1485169]
[1750865926041,0.3672,2410.9,2410.6,4.14824084]
[1750865926360,0.89745037,2410.9,2410.8,4.14800066]
[1750865926563,0.3672,2410.9,2410.8,4.14800066]
[1750865926878,0.16,2410.9,2410.7,4.35535665]
[1750865927039,0.16,2410.9,2410.8,4.14800066]
[1750865927240,0.16,2410.9,2410.5,4.14843729]
[1750865927463,0.2072,2410.7,2410.4,4.1486086]
[1750865928256,0.2072,2410.7,2410.5,4.14850145]
[1750865929282,0.2072,2410.7,2410.4,4.14861922]
[1750865929978,4.35548397,2410.7,2410.3,0.2072]
[1750865930165,0.2072,2410.5,2410.3,4.14884951]
[1750865930539,0.2072,2410.5,2410.2,4.14902368]
[1750865930540,0.2072,2410.5,2410.1,8.2178]
[1750865930739,0.2072,2410.5,2410.4,4.14868901]
[1750865931241,0.8046,2410.8,2410.6,4.14829271]
[1750865931446,0.2072,2410.6,2410.5,4.14844049]
[1750865932341,0.8046,2411.1,2410.8,4.14794619]
[1750865932573,0.2072,2411.0,2410.8,4.14794619]
[1750865932873,0.2072,2411.0,2410.9,4.14782861]
[1750865933174,0.2072,2411.0,2410.8,4.14792696]
[1750865933374,0.2072,2411.0,2410.7,4.14810283]
[1750865933579,4.35502793,2411.0,2410.5,4.35559982]
[1750865933780,4.66370262,2411.0,2410.5,4.14841192]
[1750865934081,0.2072,2410.7,2410.4,10.0]
[1750865934302,0.2072,2410.7,2410.4,14.14867694]
[1750865934579,0.2072,2410.7,2410.3,0.2072]
[1750865934785,0.2072,2410.6,2410.3,10.0]
[1750865934945,0.2072,2410.6,2410.1,1.028]
[1750865935275,5.11346364,2410.6,2410.1,4.35629829]
[1750865935576,0.2072,2410.4,2410.1,14.14919308]
[1750865935781,0.2072,2410.4,2410.2,4.14901185]
[1750865935978,0.2072,2410.4,2409.9,11.74969463]
[1750865936156,0.92619893,2410.4,2409.5,0.8262]
[1750865936360,0.2072,2410.0,2409.8,4.1495751]
[1750865936568,0.2072,2410.0,2409.7,14.14972716]
[1750865937483,0.2072,2410.0,2409.9,4.14954977]
[1750865937779,0.7579,2410.6,2409.7,10.0]
[1750865937961,0.2072,2410.3,2409.9,0.2072]
[1750865938161,0.2072,2410.3,2409.9,4.35665507]
[1750865938559,4.14868985,2410.4,2409.9,4.14945507]
[1750865938885,0.2072,2410.2,2410.0,4.14937638]
[1750865939064,0.2072,2410.2,2409.8,12.54372051]
[1750865939379,0.2072,2410.2,2410.1,4.14920542]
[1750865939984,0.2072,2410.2,2410.0,4.1492855]
[1750865940281,0.2072,2410.2,2410.1,4.14920542]
[1750865940584,0.16,2410.5,2410.4,4.14868901]
[1750865940763,0.16,2410.6,2410.5,4.1485169]
[1750865942098,0.2072,2410.8,2410.5,0.55]
[1750865942254,0.2072,2411.1,2410.6,7.39]
[1750865942455,0.16,2411.1,2411.0,4.14765657]
[1750865942963,0.2072,2411.3,2410.8,0.2072]
[1750865943162,4.14742811,2411.2,2410.7,11.53612436]
[1750865943366,0.2072,2411.0,2410.8,4.1478626]
[1750865943563,0.2072,2411.0,2410.7,7.388]
[1750865943805,0.2072,2411.0,2410.8,4.14788564]
[1750865944157,0.2072,2411.0,2410.9,4.14782861]
[1750865944356,0.2072,2411.0,2410.7,7.388]
[1750865944558,0.8046,2410.9,2409.8,0.7513]
[1750865944778,0.2072,2410.4,2410.3,4.14883865]
[1750865945287,0.2072,2410.4,2410.3,4.14886113]
[1750865945686,0.16,2410.8,2410.1,4.1490535]
[1750865945888,0.2072,2410.7,2410.6,4.14834481]
[1750865946278,0.2072,2410.7,2410.3,0.2072]
[1750865946588,0.2072,2410.7,2410.5,4.14849905]
[1750865946786,0.2072,2410.7,2410.3,4.35604929]
[1750865946989,0.2072,2410.7,2410.4,4.148566]
[1750865947190,4.30806303,2410.8,2410.3,4.14882464]
[1750865947395,0.2072,2410.5,2410.3,4.14882464]
[1750865947563,0.16,2410.8,2410.4,4.91198901]
[1750865947759,0.3672,2410.8,2410.4,4.14868901]
[1750865948189,4.51522865,2410.8,2410.3,4.35598497]
[1750865948365,0.2072,2410.6,2410.3,4.14878497]
[1750865948688,0.2072,2410.6,2410.4,4.14859425]
[1750865949458,0.16,2410.5,2409.8,10.7633]
[1750865949662,4.95018342,2410.2,2409.7,4.14985146]
[1750865949863,0.16,2410.1,2409.3,0.8154]
[1750865950187,0.16,2410.1,2409.4,1.23491294]
[1750865950375,0.16,2410.1,2409.0,0.8154]
[1750865950376,4.15006976,2409.6,2409.0,0.8154]
[1750865950563,4.15006976,2409.6,2408.9,4.15118464]
[1750865950564,4.91274114,2409.4,2408.9,4.15125039]
[1750865950991,4.91268108,2409.4,2408.4,0.8154]
[1750865951192,10.0,2409.6,2409.3,4.15048046]
[1750865951494,4.15058927,2409.3,2408.6,4.15178942]
[1750865951663,0.7622,2409.4,2408.5,0.71006575]
[1750865951862,0.7622,2409.4,2408.8,4.15137706]
[1750865951863,2.133,2409.3,2408.8,4.15137706]
[1750865952271,2.133,2409.3,2408.6,10.0]
[1750865952478,2.42252,2409.3,2408.9,4.15116923]
[1750865952995,2.42252,2409.3,2408.8,4.15142743]
[1750865953169,2.42252,2409.3,2408.5,0.71006575]
[1750865953793,2.42252,2409.3,2408.8,4.15130022]
[1750865954097,6.57314571,2409.3,2408.8,4.15130022]
[1750865954296,1.14858535,2409.2,2408.8,4.1512728]
[1750865954493,2.42252,2409.3,2408.4,0.8154]
[1750865954672,6.57319079,2409.3,2408.7,4.15153676]
[1750865954881,2.42252,2409.3,2408.7,4.15153676]
[1750865955066,6.57324645,2409.3,2408.6,4.15175466]
[1750865955266,5.29937214,2409.2,2408.7,4.151533]
[1750865955590,1.14859932,2409.2,2408.4,0.8154]
[1750865955801,2.42252,2409.3,2408.4,0.8154]
[1750865956092,0.16,2409.2,2408.5,4.15186829]
[1750865956267,0.16,2409.2,2408.7,4.1515143]
[1750865956462,4.31077659,2409.2,2408.7,4.1515143]
[1750865956667,0.16,2409.2,2408.7,4.1515143]
[1750865956905,0.7547,2409.1,2408.3,10.0]
[1750865957091,0.7547,2409.1,2408.8,4.15134162]
[1750865957291,0.7547,2409.1,2408.6,4.15170806]
[1750865957472,0.7547,2409.1,2408.3,17.381]
[1750865957873,0.16,2409.2,2408.9,4.1511894]
[1750865958094,0.16,2409.2,2408.6,4.92936982]
[1750865958303,0.16,2409.2,2408.9,4.15119685]
[1750865958719,0.16,2409.2,2408.6,0.7776]
[1750865959280,0.16,2409.2,2408.7,4.15161705]
[1750865959572,0.2072,2409.0,2408.8,4.15141346]
[1750865960194,0.2072,2409.0,2408.9,4.15127236]
[1750865960712,0.2072,2409.0,2408.7,4.15157286]
[1750865960910,10.8046,2408.8,2407.8,0.20830729]
[1750865961107,11.53156,2408.7,2407.8,1.01200729]
[1750865961317,13.65272026,2408.7,2408.1,4.15250938]
[1750865961681,4.15190685,2408.6,2408.1,4.15250938]
[1750865961986,13.65267299,2408.7,2408.0,4.15275797]
[1750865962315,1.4457273,2408.6,2407.9,4.1528746]
[1750865962622,1.4457273,2408.6,2407.8,0.8037]
[1750865962623,4.15204269,2408.5,2407.8,0.8037]
[1750865962823,4.15204269,2408.5,2408.0,4.152789]
[1750865962980,4.15204269,2408.5,2407.9,4.15292223]
[1750865963182,0.97496026,2408.4,2407.9,4.15292223]
[1750865963518,0.97496026,2408.4,2407.6,0.7752]
[1750865963707,4.91999979,2408.3,2407.8,4.15307629]
[1750865964219,4.15256378,2408.2,2407.7,4.15325057]
[1750865964429,6.36523551,2408.6,2408.0,4.15269929]
[1750865964632,6.36523551,2408.6,2407.9,4.15298931]
[1750865964838,6.36523551,2408.6,2407.6,4.92869093]
[1750865964839,6.43188649,2408.5,2408.0,4.15273723]
[1750865965336,2.27989854,2408.5,2407.6,0.7752]
[1750865965636,2.27989854,2408.5,2408.3,4.1522738]
[1750865965938,2.27989854,2408.5,2408.4,4.15213419]
[1750865966136,0.16,2408.5,2407.9,0.55]
[1750865966309,0.16,2408.5,2407.7,0.55]
[1750865966510,0.16,2408.5,2408.3,4.15221356]
[1750865967320,0.16,2408.5,2407.8,0.55]
[1750865967510,0.16,2408.5,2408.3,4.15214576]
[1750865968439,0.46496,2408.5,2408.1,4.15264598]
[1750865968743,0.46496,2408.5,2407.6,4.92870479]
[1750865968744,0.46496,2408.5,2407.7,4.70334136]
[1750865969045,0.16,2408.4,2408.3,4.15214149]
[1750865969209,0.16,2409.0,2408.5,0.55]
[1750865969397,2.8971,2409.3,2409.0,4.15101749]
[1750865969398,0.16,2409.2,2409.0,4.15101749]
[1750865969599,0.9341,2409.3,2409.0,4.15101749]
[1750865969828,1.4425342,2409.3,2409.0,4.15101749]
[1750865970194,0.16,2409.3,2409.1,4.15091311]
[1750865970433,4.15031716,2409.5,2409.0,4.15108506]
[1750865970634,4.15024856,2409.5,2409.0,4.15102521]
[1750865970854,4.15043091,2409.4,2408.9,4.15118067]
[1750865971137,4.1506839,2409.3,2408.9,0.2072]
[1750865971430,0.2072,2409.1,2408.9,4.15122637]
[1750865971724,3.0571,2409.6,2409.0,4.15110004]
[1750865971929,0.2072,2409.2,2409.0,4.15110004]
[1750865972145,0.2072,2409.2,2409.1,4.15092773]
[1750865972344,0.2072,2409.5,2409.2,4.15066069]
[1750865972548,0.2072,2409.5,2409.0,0.2072]
[1750865972744,0.2072,2409.5,2409.4,4.15041089]
[1750865973129,0.2072,2409.5,2409.0,1.0073]
[1750865973130,0.2072,2409.5,2409.1,4.15092773]
[1750865973300,0.2072,2409.5,2409.0,5.15839703]
[1750865973500,0.2072,2409.5,2409.0,1.0073]
[1750865973726,0.2072,2409.5,2409.1,4.15087679]
[1750865973900,0.2072,2409.5,2409.2,4.15071576]
[1750865974408,0.2072,2409.5,2409.3,4.15054133]
[1750865974611,0.2072,2409.5,2409.2,4.15072354]
[1750865974800,0.2072,2409.5,2409.3,4.15043392]
[1750865975128,0.2072,2409.5,2409.4,4.15041089]
[1750865975516,0.3672,2409.5,2409.4,4.15041089]
[1750865975716,0.3672,2409.5,2409.3,4.15057336]
[1750865975927,0.3672,2409.5,2409.2,4.15068122]
[1750865976247,4.15085004,2409.2,2408.7,4.15154072]
[1750865976458,1.0014,2409.1,2408.7,4.15154072]
[1750865976976,1.0014,2409.1,2408.6,0.2072]
[1750865976977,4.15117896,2409.0,2408.6,0.2072]
[1750865977112,0.2072,2408.8,2408.5,4.15192492]
[1750865977308,0.2072,2408.8,2408.6,4.15177656]
[1750865977512,0.2072,2408.8,2408.5,14.15188272]
[1750865977755,0.2072,2408.8,2408.4,4.15200014]
[1750865977918,0.2072,2408.8,2408.5,4.15195864]
[1750865978441,0.2072,2408.8,2408.6,4.1517089]
[1750865978635,0.2072,2408.8,2408.5,14.15188403]
[1750865979042,0.2072,2408.8,2408.6,4.15173886]
[1750865979344,0.2072,2408.8,2408.5,14.15187673]
[1750865979950,0.2072,2408.8,2408.3,4.35946582]
[1750865979951,0.2072,2408.8,2408.4,4.15204381]
[1750865980114,4.15133313,2408.9,2408.4,4.15204381]
[1750865980444,0.2072,2408.4,2408.3,14.1523066]
[1750865981106,0.16,2409.0,2408.9,4.15127236]
[1750865981306,0.16,2409.0,2408.5,0.7673]
[1750865981307,0.3672,2409.0,2408.5,0.7673]
[1750865981513,0.3672,2409.0,2408.7,4.15154198]
[1750865982136,0.3672,2409.0,2408.8,4.15143599]
[1750865982335,0.16,2408.9,2408.8,4.15143599]
[1750865982926,0.16,2408.9,2408.7,4.15154092]
[1750865983126,0.16,2408.9,2408.8,4.1514447]
[1750865984331,0.16,2408.9,2408.5,0.2072]
[1750865984531,0.16,2408.9,2408.7,4.15152425]
[1750865985044,0.16,2408.9,2408.8,4.1514447]
[1750865985422,0.16,2408.9,2408.8,5.8057416]
[1750865985648,0.16,2408.9,2408.8,6.0129416]
[1750865986144,0.3672,2409.2,2409.1,4.15092773]
[1750865986343,0.16,2409.6,2409.5,4.15023863]
[1750865986521,0.16,2409.6,2409.1,4.15092773]
[1750865986522,0.16,2409.6,2409.4,4.15032135]
[1750865986729,0.3672,2409.7,2409.3,4.15054859]
[1750865987148,4.15014163,2409.6,2409.1,4.15082522]
[1750865987336,0.2072,2409.4,2408.9,0.2072]
[1750865987539,4.1505905,2409.3,2408.9,0.2072]
[1750865987844,0.2072,2409.2,2408.8,4.35860654]
[1750865988044,0.3672,2409.2,2408.8,4.35860654]
[1750865988345,0.3672,2409.2,2408.9,4.15124711]
[1750865988717,0.3672,2409.2,2408.8,0.2072]
[1750865988914,0.2072,2409.0,2408.6,4.15163566]
[1750865989236,0.2072,2408.8,2408.5,4.15186662]
[1750865989428,0.2072,2408.8,2408.4,4.35929895]
[1750865989429,0.2072,2408.8,2408.6,4.15177321]
[1750865989629,0.2072,2408.8,2408.5,4.15193258]
[1750865990028,0.2072,2408.8,2408.6,4.15176624]
[1750865990859,0.2072,2408.8,2408.5,4.1519178]
[1750865991555,0.9705,2408.8,2408.4,0.2072]
[1750865991759,5.1219868,2408.8,2408.4,0.2072]
[1750865992056,5.1219868,2408.8,2408.4,4.15200443]
[1750865992057,0.2072,2408.6,2408.4,4.15200443]
[1750865992435,0.2072,2408.6,2408.4,4.15202839]
[1750865992657,0.2072,2408.6,2408.5,4.1519618]
[1750865994260,0.16,2408.8,2408.7,4.15161705]
[1750865995739,0.16,2408.8,2408.7,5.07916428]
[1750865995939,0.16,2408.8,2408.7,5.28636428]
[1750865997059,0.2072,2409.2,2408.8,4.15138047]
[1750865997355,0.2072,2409.2,2408.8,4.15136797]
[1750865997558,5.10916039,2409.3,2408.8,4.15136797]
[1750865997758,0.9585,2409.3,2409.1,4.15082287]
[1750865997961,0.2072,2409.2,2409.1,4.15082287]
[1750865999328,0.16,2409.2,2409.1,4.94742287]
[1750865999530,0.16,2409.2,2409.1,5.15462287]
[1750866000351,0.16,2409.6,2409.1,11.0038]
[1750866000524,0.9672,2409.4,2409.0,0.2072]
[1750866000734,0.2072,2409.2,2409.1,4.15082626]
[1750866000928,0.2072,2409.2,2409.0,4.15100664]
[1750866001131,0.16,2409.1,2408.8,0.2072]
[1750866001330,0.16,2409.1,2408.8,4.15134109]
[1750866001526,0.3672,2409.1,2408.8,4.15134109]
[1750866001731,0.16,2409.1,2408.9,4.15119764]
[1750866002040,0.16,2409.1,2408.6,0.2072]
[1750866002236,0.16,2409.1,2408.7,4.15152328]
[1750866002437,0.16,2409.1,2408.8,4.15143402]
[1750866002663,0.16,2409.1,2409.0,4.15110004]
[1750866003359,0.76,2409.4,2408.7,5.0026141]
[1750866003360,0.76,2409.4,2408.7,0.85104111]
[1750866003564,0.9672,2409.4,2409.2,4.15059555]
[1750866003870,20.2343,2409.7,2409.2,4.15072238]
[1750866004050,20.2343,2409.7,2409.4,4.15038912]
[1750866004051,0.7733,2409.7,2409.4,4.15038912]
[1750866004239,0.2072,2409.6,2409.4,4.15038912]
[1750866004563,0.2072,2409.6,2409.2,0.2072]
[1750866004764,4.35728607,2409.6,2409.2,0.2072]
[1750866005074,4.15034592,2409.5,2409.2,0.2072]
[1750866005277,1.93504058,2409.6,2408.9,0.8328]
[1750866005576,0.2072,2409.4,2408.9,5.19120325]
[1750866005775,0.2072,2409.4,2409.0,4.15096165]
[1750866005933,0.2072,2409.4,2409.1,4.15088424]
[1750866006133,0.2072,2409.4,2408.9,1.04]
[1750866006339,0.7733,2409.7,2409.4,4.15024274]
[1750866006541,0.2072,2409.6,2409.4,4.15024274]
[1750866006756,0.2072,2409.6,2409.5,4.15023863]
[1750866007266,0.2072,2409.6,2409.4,4.15035492]
[1750866007464,0.2072,2409.6,2409.1,4.358099]
[1750866007665,5.25520435,2409.6,2409.1,4.150899]
[1750866007871,0.2072,2409.4,2409.0,0.2072]
[1750866008169,0.2072,2409.4,2409.0,4.3582669]
[1750866008465,4.35771382,2409.4,2409.0,0.2072]
[1750866008636,4.35771382,2409.4,2408.7,4.90469374]
[1750866008637,4.15057562,2409.4,2408.7,4.90469374]
[1750866008837,0.2072,2409.2,2409.0,4.1510944]
[1750866009269,0.2072,2409.2,2409.1,4.15092773]
[1750866009468,4.92333241,2409.7,2409.2,4.15072824]
[1750866009469,0.2072,2409.3,2409.2,4.15072824]
[1750866010984,0.7733,2409.7,2409.3,4.15043519]
[1750866011149,0.9805,2409.7,2409.5,4.15022072]
[1750866011473,2.81995,2409.7,2409.2,0.2072]
[1750866011637,4.15101251,2409.1,2408.7,0.2072]
[1750866011837,4.15101251,2409.1,2408.5,0.8164]
[1750866011838,5.16293547,2409.0,2408.5,11.0236]
[1750866012254,1.0118,2409.0,2408.6,4.15177786]
[1750866012436,4.9557835,2409.0,2408.5,4.15194805]
[1750866012641,0.2072,2408.8,2408.5,4.15194805]
[1750866012839,0.2072,2408.8,2408.5,5.08437944]
[1750866013039,0.2072,2408.8,2408.5,0.93241764]
[1750866013381,0.2072,2408.8,2408.4,14.35921261]
[1750866013609,0.2072,2408.8,2408.5,4.15195848]
[1750866013903,0.2072,2408.8,2408.4,14.35920831]
[1750866014074,0.2072,2408.8,2408.5,4.15186843]
[1750866014399,0.2072,2408.8,2408.6,4.15178475]
[1750866014607,0.2072,2408.8,2408.5,4.15189823]
[1750866015000,0.2072,2408.8,2408.4,10.2072]
[1750866015001,0.7784,2409.6,2408.7,10.0]
[1750866015295,4.15041089,2409.4,2408.5,4.90736271]
[1750866015497,0.7784,2409.2,2408.6,4.15176632]
[1750866015667,13.58702592,2409.1,2408.6,4.15176632]
[1750866015868,4.15111511,2409.0,2408.5,4.15188067]
[1750866016283,6.00277498,2409.0,2408.2,0.7555]
[1750866016495,6.00277498,2409.0,2408.5,4.15181021]
[1750866016804,0.8046,2408.9,2407.7,0.7986]
[1750866017009,4.95587824,2408.9,2408.4,4.15200146]
[1750866017296,4.15144627,2408.8,2408.3,4.15222873]
[1750866017698,6.07890724,2408.9,2408.4,4.15212658]
[1750866017873,1.92754357,2408.9,2408.1,4.1526023]
[1750866018075,0.8046,2408.9,2408.3,10.0]
[1750866018278,0.8046,2408.9,2408.7,4.1515742]
[1750866018683,0.8046,2408.9,2408.2,0.8272]
[1750866018887,0.8046,2408.9,2408.6,4.15177574]
[1750866019585,0.8046,2408.9,2408.7,4.15161403]
[1750866019785,4.15085123,2409.2,2408.2,0.8272]
[1750866019786,0.7927,2409.2,2408.8,4.15142223]
[1750866019990,14.07926793,2409.1,2408.6,4.15169741]
[1750866020168,9.92833595,2409.1,2408.7,4.1515946]
[1750866020793,9.92833595,2409.1,2408.8,4.15140058]
[1750866021296,14.07926881,2409.1,2408.6,4.1517304]
[1750866021704,4.15112885,2409.0,2408.5,4.1518813]
[1750866021878,6.05343862,2409.0,2408.5,4.1518813]
[1750866022084,1.90230977,2409.0,2408.6,4.1517696]
[1750866022286,6.0534186,2409.0,2408.6,4.1517696]
[1750866022779,1.90230977,2409.0,2408.2,0.8272]
[1750866022982,0.755,2408.8,2408.3,4.15220024]
[1750866023194,4.15177218,2408.7,2408.2,4.15242256]
[1750866023499,4.15204188,2408.5,2408.0,1.0]
[1750866023701,6.24704188,2408.5,2407.9,4.15296792]
[1750866023870,2.095,2408.5,2408.1,4.15264827]
[1750866024076,2.095,2408.5,2408.0,4.15276371]
[1750866024271,2.095,2408.5,2407.7,0.7565]
[1750866024272,0.785,2408.4,2407.6,4.95434849]
[1750866024500,0.785,2408.4,2407.9,10.0]
[1750866024680,0.785,2408.4,2408.1,4.15248978]
[1750866024880,4.15246505,2408.3,2407.5,4.15368639]
[1750866025081,0.8026,2407.9,2407.2,0.8158]
[1750866025293,0.2072,2407.7,2407.6,4.15340532]
[1750866025672,0.2072,2407.7,2407.5,4.15359593]
[1750866025878,0.2072,2407.7,2407.6,4.15351387]
[1750866026202,0.2072,2407.7,2407.5,4.1536031]
[1750866026395,0.2072,2407.7,2407.6,4.15351387]
[1750866026817,0.2072,2407.7,2407.3,4.15395295]
[1750866027102,4.36063696,2407.7,2407.2,4.36131566]
[1750866028081,1.87464041,2407.7,2406.9,0.8115]
[1750866028285,0.2072,2407.3,2407.1,4.15428628]
[1750866028496,0.2072,2407.3,2407.2,4.15420405]
[1750866028695,0.2072,2407.5,2407.4,4.1537503]
[1750866029704,0.2072,2407.5,2407.3,4.15391165]
[1750866029905,9.429,2407.7,2406.9,0.8195]
[1750866030113,0.2072,2407.4,2407.0,4.15454923]
[1750866030294,0.2072,2407.4,2407.1,4.15425056]
[1750866030494,0.2072,2407.4,2407.2,4.15410079]
[1750866030801,0.2072,2407.4,2407.2,4.15412624]
[1750866031007,0.2072,2407.4,2407.1,4.15429375]
[1750866031189,0.2072,2407.4,2406.9,0.2072]
[1750866031190,0.7526,2407.3,2407.0,4.15445628]
[1750866031594,0.7526,2407.3,2407.1,4.15436532]
[1750866031890,0.2072,2407.4,2407.3,4.15403148]
[1750866032078,0.9744,2407.5,2407.4,4.15385893]
[1750866032432,9.6342,2407.8,2407.6,4.15348186]
[1750866032592,9.6342,2407.8,2407.4,4.15385893]
[1750866032593,9.427,2407.8,2407.5,4.15358829]
[1750866033110,0.2072,2407.5,2407.2,4.1541982]
[1750866033281,0.2072,2407.5,2407.4,4.15385893]
[1750866034179,9.426,2408.2,2407.8,4.15316886]
[1750866034381,0.7758,2407.9,2407.4,0.2072]
[1750866034585,0.7758,2407.9,2407.0,0.55]
[1750866034586,0.2072,2407.5,2407.1,4.15428174]
[1750866035085,0.2072,2407.5,2407.1,4.15437663]
[1750866035281,0.2072,2407.5,2407.2,4.15410186]
[1750866035809,0.2072,2407.5,2406.6,7.33]
[1750866035810,4.15450097,2407.1,2406.7,0.2072]
[1750866036005,0.2072,2407.0,2406.3,0.7915]
[1750866036189,0.8017,2406.9,2406.6,4.15522997]
[1750866036493,0.8017,2406.9,2406.4,0.20737517]
[1750866036693,0.2072,2406.7,2406.6,4.1552225]
[1750866037698,0.2072,2406.7,2406.5,4.15535369]
[1750866037911,0.2072,2406.7,2406.4,4.36289664]
[1750866038113,0.2072,2406.7,2406.4,0.20737517]
[1750866038314,4.15519258,2406.7,2406.1,4.15600807]
[1750866038544,0.2072,2406.4,2406.2,4.15590933]
[1750866038718,0.2072,2406.4,2406.0,4.15627597]
[1750866039016,0.2072,2406.4,2406.1,4.15608243]
[1750866039215,0.2072,2406.4,2406.2,4.15593051]
[1750866039403,4.93984876,2406.6,2405.9,0.2072]
[1750866039607,1.22678488,2406.5,2406.0,4.1561529]
[1750866039809,1.22678488,2406.5,2406.1,4.15610079]
[1750866040015,4.1558915,2406.3,2405.7,4.15675259]
[1750866040190,2.8888,2406.4,2405.5,0.7675]
[1750866040396,2.8888,2406.4,2405.9,4.15636165]
[1750866040397,7.45596128,2406.4,2405.9,4.15636165]
[1750866040798,3.30035849,2406.4,2405.8,4.15661213]
[1750866041097,3.30035849,2406.4,2405.6,0.28635]
[1750866041098,7.45596443,2406.4,2405.9,4.15636811]
[1750866041293,4.15619427,2406.1,2405.1,4.15783127]
[1750866041516,7.82307943,2406.0,2405.5,4.15698728]
[1750866041716,9.424,2406.0,2405.6,4.15684147]
[1750866042324,9.424,2406.0,2405.7,4.15677147]
[1750866042525,0.8046,2406.2,2405.8,4.15657052]